fUSD/lending_fUSD_20251224
["ID","MTS","AMOUNT","RATE_DAILY","PERIOD"]
[399638269,1766580639934,-21773.86613792,0.00015102,2]
[399638270,1766580639944,-500.0,0.00015106,2]
[399638271,1766580639955,-169.91,0.00015141,2]
[399638272,1766580639967,-161.57308931,0.00015173,2]
[399638273,1766580639976,-500.0,0.00015173,2]
[399638274,1766580639986,-169.37257746,0.00015173,2]
[399638275,1766580639996,-176.76151573,0.00015173,2]
[399638276,1766580640007,-500.0,0.00015173,2]
[399638277,1766580640017,-500.0,0.00015173,2]
[399638278,1766580640027,-500.0,0.00015173,2]
[399638279,1766580640037,-500.0,0.00015173,2]
[399638280,1766580640048,-174.83400543,0.00015173,2]
[399638281,1766580640058,-163.19223575,0.00015173,2]
[399638282,1766580640068,-500.08479975,0.00015173,2]
[399638283,1766580640079,-562.564449,0.00015173,2]
[399638284,1766580640088,-500.0,0.00015173,2]
[399638285,1766580640099,-500.37919946,0.00015173,2]
[399638286,1766580640110,-500.0,0.00015173,2]
[399638287,1766580640119,-500.0,0.00015173,2]
[399638288,1766580640129,-500.0,0.00015173,2]
[399638289,1766580640139,-500.0,0.00015173,2]
[399638290,1766580640149,-500.0,0.00015173,2]
[399638291,1766580640159,-172.85820104,0.00015173,2]
[399638293,1766580640169,-500.0,0.00015173,2]
[399638295,1766580640179,-500.0,0.00015173,2]
[399638297,1766580640189,-500.0,0.00015173,2]
[399638299,1766580640199,-500.0,0.00015173,2]
[399638301,1766580640209,-500.0,0.00015173,2]
[399638303,1766580640219,-276.60479743,0.00015173,2]
[399638304,1766580640229,-167.20691349,0.00015173,2]
[399638305,1766580640239,-224.16527175,0.00015173,2]
[399638306,1766580640250,-500.0,0.00015173,2]
[399638307,1766580640260,-162.2863667,0.00015173,2]
[399638308,1766580640271,-500.0,0.00015173,2]
[399638309,1766580640280,-500.0,0.00015173,2]
[399638310,1766580640290,-500.0,0.00015173,2]
[399638311,1766580640300,-500.0,0.00015173,2]
[399638312,1766580640311,-500.0,0.00015173,2]
[399638313,1766580640321,-500.0,0.00015173,2]
[399638314,1766580640331,-500.0,0.00015173,2]
[399638315,1766580640341,-500.0,0.00015173,2]
[399638316,1766580640351,-500.0,0.00015173,2]
[399638317,1766580640361,-453.84632834,0.00015173,2]
[399638318,1766580640371,-500.0,0.00015173,2]
[399638319,1766580640381,-516.09973549,0.00015173,2]
[399638320,1766580640390,-500.0,0.00015173,2]
[399638321,1766580640400,-166.66,0.00015199,2]
[399638322,1766580640412,-396.73,0.00015219,2]
[399638323,1766580640422,-2267.36,0.00015224,2]
[399638324,1766580640432,-220.74,0.00015225,2]
[399638325,1766580640442,-500.0,0.0001525,2]
[399638326,1766580640453,-500.0,0.0001525,2]
[399638327,1766580640463,-340.74998716,0.00015283,2]
[399638328,1766580640473,-150.0,0.00015288,2]
[399638329,1766580640483,-150.0,0.00015288,2]
[399638330,1766580640493,-152.81357025,0.00015288,2]
[399638331,1766580640502,-150.0,0.00015288,2]
[399638332,1766580640513,-150.0,0.00015288,2]
[399638333,1766580640522,-150.0,0.00015288,2]
[399638334,1766580640532,-150.0,0.00015288,2]
[399638335,1766580640541,-150.0,0.00015288,2]
[399638336,1766580640550,-152.31137415,0.00015288,2]
[399638337,1766580640560,-150.0,0.00015288,2]
[399638338,1766580640569,-150.00000001,0.00015288,2]
[399638339,1766580640579,-150.0,0.00015288,2]
[399638340,1766580640588,-150.0,0.00015288,2]
[399638341,1766580640598,-150.0,0.00015288,2]
[399638342,1766580640608,-15853.4625362,0.00015357,2]
[399638343,1766580640618,-21773.86613792,0.00015359,2]
[399638344,1766580640628,-320.78,0.00015398,2]
[399638345,1766580640638,-150.0,0.00015401,2]
[399638346,1766580640648,-272.99,0.00015405,2]
[399638347,1766580640658,-150.0,0.00015476,2]
[399638348,1766580640668,-2267.36,0.00015498,2]
[399638349,1766580640678,-150.0,0.00015514,2]
[399638350,1766580640687,-150.0,0.0001553,2]
[399638351,1766580640697,-150.0,0.0001553,2]
[399638352,1766580640707,-150.0,0.0001553,2]
[399638353,1766580640717,-150.0,0.0001553,2]
[399638354,1766580640727,-150.0,0.00015571,2]
[399638355,1766580640737,-151.0,0.00015595,2]
[399638356,1766580640746,-151.0,0.0001561,2]
[399638357,1766580640756,-15853.4625362,0.00015614,2]
[399638359,1766580640767,-21773.86613792,0.00015616,2]
[399638360,1766580640776,-150.0,0.00015627,2]
[399638362,1766580640786,-150.0,0.00015665,2]
[399638364,1766580640796,-1000.0,0.00015721,2]
[399638366,1766580640805,-1000.0,0.00015721,2]
[399638367,1766580640816,-535.67909762,0.00015721,2]
[399638369,1766580640826,-501.75154146,0.00015721,2]
[399638370,1766580640836,-1000.0,0.00015721,2]
[399638371,1766580640846,-1000.0,0.00015721,2]
[399638372,1766580640856,-1000.0,0.00015721,2]
[399638373,1766580640866,-1000.0,0.00015721,2]
[399638374,1766580640875,-631.6683013,0.00015721,2]
[399638375,1766580640886,-1000.0,0.00015721,2]
[399638376,1766580640900,-1000.0,0.00015721,2]
[399638377,1766580640909,-1000.0,0.00015721,2]
[399638378,1766580640919,-304.45148549,0.00015721,2]
[399638379,1766580640930,-1000.0,0.00015721,2]
[399638380,1766580640940,-1000.0,0.00015721,2]
[399638381,1766580640950,-1000.0,0.00015721,2]
[399638382,1766580640959,-1000.0,0.00015721,2]
[399638383,1766580640970,-1000.0,0.00015721,2]
[399638384,1766580640980,-937.29781211,0.00015721,2]
[399638385,1766580640990,-1000.0,0.00015721,2]
[399638386,1766580641000,-1000.0,0.00015721,2]
[399638387,1766580641010,-484.46296628,0.00015721,2]
[399638388,1766580641020,-1000.0,0.00015721,2]
[399638389,1766580641030,-1144.90304648,0.00015721,2]
[399638390,1766580641040,-1000.0,0.00015721,2]
[399638391,1766580641050,-1000.0,0.00015721,2]
[399638392,1766580641060,-1000.0,0.00015721,2]
[399638393,1766580641069,-1000.0,0.00015721,2]
[399638394,1766580641079,-628.42658532,0.00015721,2]
[399638395,1766580641429,-150.0,0.00015741,2]
[399638396,1766580641439,-1065.42,0.00015746,2]
[399638397,1766580641450,-2267.36,0.00015772,2]
[399638398,1766580641459,-150.0,0.00015773,2]
[399638399,1766580641470,-150.0,0.00015773,2]
[399638400,1766580641480,-150.0,0.00015773,2]
[399638401,1766580641490,-150.0,0.00015773,2]
[399638402,1766580641499,-340.74998716,0.00015786,2]
[399638403,1766580641509,-1207.7839934,0.00015806,2]
[399638404,1766580641518,-255.0,0.00015806,2]
[399638405,1766580641529,-500.0,0.00015833,2]
[399638406,1766580641539,-500.0,0.00015833,2]
[399638407,1766580641548,-500.0,0.00015833,2]
[399638408,1766580641558,-150.0,0.00015854,2]
[399638409,1766580641568,-150.0,0.00015854,2]
[399638410,1766580641577,-150.0,0.00015854,2]
[399638411,1766580641587,-150.0,0.00015854,2]
[399638412,1766580641596,-150.0,0.00015854,2]
[399638413,1766580641606,-150.0,0.00015854,2]
[399638414,1766580641616,-15853.4625362,0.00015872,2]
[399638415,1766580641625,-21773.86613792,0.00015872,2]
[399638416,1766580641635,-200.0,0.00015894,2]
[399638417,1766580641644,-268.86752652,0.00015924,2]
[399638418,1766580641654,-322.6107,0.00015927,2]
[399638419,1766580641663,-197.26302206,0.00015927,2]
[399638420,1766580641673,-250.0,0.00015927,2]
[399638421,1766580641682,-543.0,0.00015927,2]
[399638422,1766580641692,-500.0,0.00015927,2]
[399638423,1766580641703,-250.0,0.00015927,2]
[399638424,1766580641712,-500.0,0.00015927,2]
[399638425,1766580641722,-250.0,0.00015927,2]
[399638426,1766580641731,-500.0,0.00015927,2]
[399638427,1766580641740,-250.0,0.00015927,2]
[399638428,1766580641750,-500.0,0.00015927,2]
[399638429,1766580641760,-151.0,0.00015927,2]
[399638430,1766580641769,-156.587,0.00015927,2]
[399638431,1766580641780,-250.0,0.00015927,2]
[399638432,1766580641789,-162.380719,0.00015927,2]
[399638433,1766580641798,-153.82745935,0.00015927,2]
[399638434,1766580641807,-500.0,0.00015927,2]
[399638435,1766580641817,-500.0,0.00015927,2]
[399638436,1766580641827,-500.0,0.00015927,2]
[399638437,1766580641836,-500.0,0.00015927,2]
[399638438,1766580641846,-500.0,0.00015927,2]
[399638439,1766580641855,-500.0,0.00015927,2]
[399638440,1766580641864,-500.0,0.00015927,2]
[399638441,1766580641874,-714.61817831,0.00015927,2]
[399638442,1766580641884,-500.0,0.00015927,2]
[399638443,1766580641898,-200.0,0.00015927,2]
[399638444,1766580641908,-500.0,0.00015927,2]
[399638445,1766580641917,-500.0,0.00015927,2]
[399638446,1766580641927,-207.4,0.00015927,2]
[399638447,1766580641939,-500.0,0.00015927,2]
[399638448,1766580641948,-500.0,0.00015927,2]
[399638449,1766580641957,-215.0738,0.00015927,2]
[399638450,1766580641968,-500.0,0.00015927,2]
[399638451,1766580641978,-500.0,0.00015927,2]
[399638452,1766580641987,-223.0315306,0.00015927,2]
[399638453,1766580641996,-259.02685211,0.00015927,2]
[399638454,1766580642005,-500.0,0.00015927,2]
[399638455,1766580642015,-500.0,0.00015927,2]
[399638456,1766580642024,-231.28369723,0.00015927,2]
[399638457,1766580642034,-500.0,0.00015927,2]
[399638458,1766580642043,-500.0,0.00015927,2]
[399638459,1766580642052,-500.0,0.00015927,2]
[399638460,1766580642062,-239.84119403,0.00015927,2]
[399638461,1766580642072,-500.0,0.00015927,2]
[399638462,1766580642082,-500.0,0.00015927,2]
[399638463,1766580642091,-620.0,0.00015927,2]
[399638464,1766580642101,-500.0,0.00015927,2]
[399638465,1766580642110,-248.71531821,0.00015927,2]
[399638466,1766580642119,-500.0,0.00015927,2]
[399638467,1766580642129,-500.0,0.00015927,2]
[399638468,1766580642138,-500.0,0.00015927,2]
[399638469,1766580642148,-257.91778498,0.00015927,2]
[399638470,1766580642157,-500.0,0.00015927,2]
[399638471,1766580642166,-500.0,0.00015927,2]
[399638472,1766580642176,-500.0,0.00015927,2]
[399638473,1766580642185,-267.46074303,0.00015927,2]
[399638474,1766580642195,-500.0,0.00015927,2]
[399638475,1766580642204,-500.0,0.00015927,2]
[399638476,1766580642214,-277.35679052,0.00015927,2]
[399638477,1766580642223,-500.0,0.00015927,2]
[399638478,1766580642233,-500.0,0.00015927,2]
[399638479,1766580642243,-500.0,0.00015927,2]
[399638480,1766580642253,-500.0,0.00015927,2]
[399638481,1766580642264,-500.0,0.00015927,2]
[399638482,1766580642274,-500.0,0.00015927,2]
[399638483,1766580642283,-500.0,0.00015927,2]
[399638484,1766580642293,-500.0,0.00015927,2]
[399638485,1766580642303,-500.0,0.00015927,2]
[399638486,1766580642313,-500.0,0.00015927,2]
[399638487,1766580642323,-500.0,0.00015927,2]
[399638488,1766580642333,-250.0,0.00015927,2]
[399638489,1766580642343,-250.0,0.00015927,2]
[399638490,1766580642353,-250.0,0.00015927,2]
[399638491,1766580642362,-250.0,0.00015927,2]
[399638492,1766580642372,-250.0,0.00015927,2]
[399638493,1766580642382,-250.0,0.00015927,2]
[399638494,1766580642391,-261.58626416,0.00015927,2]
[399638495,1766580642401,-500.0,0.00015927,2]
[399638496,1766580642410,-500.0,0.00015927,2]
[399638497,1766580642419,-500.0,0.00015927,2]
[399638498,1766580642429,-500.0,0.00015927,2]
[399638499,1766580642439,-500.0,0.00015927,2]
[399638500,1766580642448,-500.0,0.00015927,2]
[399638501,1766580642458,-500.0,0.00015927,2]
[399638502,1766580642467,-500.0,0.00015927,2]
[399638503,1766580642477,-261.6071653,0.00015927,2]
[399638504,1766580642487,-578.20924308,0.00015927,2]
[399638505,1766580642497,-150.0,0.00015967,2]
[399638506,1766580642506,-2991.0,0.00015977,2]
[399638507,1766580642515,-420.0,0.00015991,2]
[399638508,1766580642525,-150.0,0.00016016,2]
[399638509,1766580642535,-150.0,0.00016016,2]
[399638510,1766580642544,-150.0,0.00016016,2]
[399638511,1766580642554,-150.0,0.00016016,2]
[399638512,1766580642564,-2991.0,0.00016023,2]
[399638513,1766580642574,-269.4930358,0.00016025,2]
[399638514,1766580642584,-150.0,0.00016043,2]
[399638515,1766580642593,-300.0,0.00016044,2]
[399638516,1766580642603,-5000.0,0.00016044,4]
[399638517,1766580642613,-250.0,0.00016044,2]
[399638518,1766580642622,-2500.0,0.00016044,2]
[399638519,1766580642633,-1680.0,0.00016044,2]
[399638520,1766580642643,-2267.36,0.00016046,2]
[399638521,1766580642652,-150.0,0.0001608,2]
[399638522,1766580642661,-600.0,0.00016082,2]
[399638523,1766580642671,-300.0,0.00016082,2]
[399638524,1766580642680,-250.0,0.00016082,2]
[399638525,1766580642690,-15853.4625362,0.00016129,2]
[399638526,1766580642700,-21773.86613792,0.00016129,2]
[399638527,1766580642710,-150.0,0.00016137,2]
[399638528,1766580642719,-2991.0,0.0001619,2]
[399638529,1766580642728,-294.2331637,0.00016192,2]
[399638530,1766580642738,-150.0,0.00016194,2]
[399638531,1766580642751,-500.0,0.00016199,2]
[399638532,1766580642761,-500.0,0.00016199,2]
[399638533,1766580642771,-500.0,0.00016199,2]
[399638534,1766580642780,-150.0,0.00016231,2]
[399638535,1766580642790,-150.0,0.00016258,2]
[399638536,1766580642799,-150.0,0.00016258,2]
[399638537,1766580642809,-150.0,0.00016258,2]
[399638538,1766580642819,-150.0,0.00016258,2]
[399638539,1766580642829,-659.61432389,0.00016268,2]
[399638540,1766580642839,-1502.21103807,0.00016268,2]
[399638541,1766580642848,-1500.0,0.00016268,2]
[399638542,1766580642858,-1152.24771279,0.00016268,2]
[399638543,1766580642868,-1466.73216774,0.00016268,2]
[399638544,1766580642877,-1500.0,0.00016268,2]
[399638545,1766580642887,-1500.0,0.00016268,2]
[399638546,1766580642901,-1459.78950383,0.00016268,2]
[399638547,1766580642910,-1505.01239591,0.00016268,2]
[399638548,1766580642920,-1500.0,0.00016268,2]
[399638549,1766580642930,-1500.0,0.00016268,2]
[399638550,1766580642940,-890.7850892,0.00016268,2]
[399638551,1766580642949,-1500.0,0.00016268,2]
[399638552,1766580642959,-1500.0,0.00016268,2]
[399638553,1766580642969,-1500.0,0.00016268,2]
[399638554,1766580642979,-1500.0,0.00016268,2]
[399638555,1766580642988,-1500.0,0.00016268,2]
[399638556,1766580642997,-1500.0,0.00016268,2]
[399638557,1766580643007,-1500.0,0.00016268,2]
[399638559,1766580643016,-340.74998716,0.0001629,2]
[399638560,1766580643026,-150.0,0.00016307,2]
[399638562,1766580643036,-2267.36,0.0001632,2]
[399638563,1766580643046,-15853.4625362,0.00016386,2]
[399638564,1766580643056,-2991.0,0.00016398,2]
[399638565,1766580643066,-2991.0,0.00016411,2]
[399638566,1766580643076,-150.0,0.0001642,2]
[399638567,1766580643085,-150.0,0.0001642,2]
[399638568,1766580643095,-150.0,0.0001642,2]
[399638569,1766580643104,-150.0,0.0001642,2]
[399638570,1766580643114,-150.0,0.0001642,2]
[399638571,1766580643124,-150.0,0.0001642,2]
[399638572,1766580643133,-4813.0,0.00016425,2]
[399638573,1766580643143,-500.0,0.00016438,2]
[399638574,1766580643152,-500.0,0.00016438,5]
[399638575,1766580643163,-648.44337163,0.00016438,2]
[399638576,1766580643173,-648.44337163,0.00016438,2]
[399638577,1766580643182,-648.44337163,0.00016438,2]
[399638578,1766580643192,-648.44337163,0.00016438,2]
[399638579,1766580643202,-648.44337163,0.00016438,2]
[399638580,1766580643212,-648.44337163,0.00016438,2]
[399638581,1766580643222,-648.44337163,0.00016438,2]
[399638582,1766580643231,-648.44337163,0.00016438,2]
[399638583,1766580643241,-648.44337163,0.00016438,2]
[399638584,1766580643251,-648.44337163,0.00016438,2]
[399638585,1766580643261,-648.44337163,0.00016438,2]
[399638586,1766580643271,-648.44337163,0.00016438,2]
[399638587,1766580643281,-648.44337163,0.00016438,2]
[399638588,1766580643291,-648.44337163,0.00016438,2]
[399638589,1766580643302,-648.44337163,0.00016438,2]
[399638590,1766580643311,-648.44337163,0.00016438,2]
[399638591,1766580643321,-648.44337163,0.00016438,2]
[399638592,1766580643331,-648.44337163,0.00016438,2]
[399638593,1766580643341,-648.44337163,0.00016438,2]
[399638594,1766580643351,-648.44337163,0.00016438,2]
[399638595,1766580643362,-648.44337163,0.00016438,2]
[399638596,1766580643372,-648.44337163,0.00016438,2]
[399638597,1766580643382,-648.44337163,0.00016438,2]
[399638598,1766580643399,-648.44337163,0.00016438,2]
[399638599,1766580643409,-648.44337163,0.00016438,2]
[399638600,1766580643419,-648.44337163,0.00016438,2]
[399638601,1766580643429,-648.44337163,0.00016438,2]
[399638602,1766580643440,-648.44337163,0.00016438,2]
[399638603,1766580643451,-648.44337163,0.00016438,2]
[399638604,1766580643461,-648.44337163,0.00016438,2]
[399638605,1766580643471,-648.44337163,0.00016438,2]
[399638606,1766580643481,-648.44337163,0.00016438,2]
[399638607,1766580643491,-648.44337163,0.00016438,2]
[399638608,1766580643502,-648.44337163,0.00016438,2]
[399638609,1766580643512,-648.44337163,0.00016438,2]
[399638610,1766580643522,-648.44337163,0.00016438,2]
[399638611,1766580643532,-648.44337163,0.00016438,2]
[399638612,1766580643542,-648.44337163,0.00016438,2]
[399638613,1766580643552,-648.44337163,0.00016438,2]
[399638614,1766580643563,-648.44337163,0.00016438,2]
[399638615,1766580643572,-648.44337163,0.00016438,2]
[399638616,1766580643582,-648.44337163,0.00016438,2]
[399638617,1766580643592,-648.44337163,0.00016438,2]
[399638618,1766580643602,-648.44337163,0.00016438,2]
[399638619,1766580643612,-648.44337163,0.00016438,2]
[399638620,1766580643623,-648.44337163,0.00016438,2]
[399638621,1766580643632,-648.44337163,0.00016438,2]
[399638622,1766580643642,-648.44337163,0.00016438,2]
[399638623,1766580643652,-648.44337163,0.00016438,2]
[399638624,1766580643662,-648.44337163,0.00016438,2]
[399638625,1766580643672,-648.44337163,0.00016438,2]
[399638626,1766580643682,-648.44337163,0.00016438,2]
[399638627,1766580643691,-648.44337163,0.00016438,2]
[399638628,1766580643701,-648.44337163,0.00016438,2]
[399638629,1766580643711,-648.44337163,0.00016438,2]
[399638630,1766580643721,-648.44337163,0.00016438,2]
[399638631,1766580643730,-648.44337163,0.00016438,2]
[399638632,1766580643740,-648.44337163,0.00016438,2]
[399638633,1766580643750,-648.44337163,0.00016438,2]
[399638634,1766580643765,-648.44337163,0.00016438,2]
[399638635,1766580643775,-648.44337163,0.00016438,2]
[399638636,1766580643785,-648.44337163,0.00016438,2]
[399638637,1766580643795,-648.44337163,0.00016438,2]
[399638638,1766580643805,-648.44337163,0.00016438,2]
[399638639,1766580643815,-648.44337163,0.00016438,2]
[399638640,1766580643825,-648.44337163,0.00016438,2]
[399638641,1766580643836,-648.44337163,0.00016438,2]
[399638642,1766580643846,-648.44337163,0.00016438,2]
[399638643,1766580643856,-648.44337163,0.00016438,2]
[399638644,1766580643866,-3570.50541764,0.00016438,2]
[399638645,1766580643876,-3570.50541764,0.00016438,2]
[399638646,1766580643887,-3570.50541764,0.00016438,2]
[399638647,1766580643902,-3570.50541764,0.00016438,2]
[399638648,1766580643912,-3570.50541764,0.00016438,2]
[399638649,1766580643923,-3570.50541764,0.00016438,2]
[399638650,1766580643933,-3570.50541764,0.00016438,2]
[399638651,1766580643941,-3570.50541764,0.00016438,2]
[399638652,1766580643950,-3570.50541764,0.00016438,2]
[399638653,1766580643958,-3570.50541764,0.00016438,2]
[399638654,1766580643966,-3570.50541764,0.00016438,2]
[399638655,1766580643975,-3570.50541764,0.00016438,2]
[399638656,1766580643983,-3570.50541764,0.00016438,2]
[399638657,1766580643990,-3570.50541764,0.00016438,2]
[399638658,1766580643998,-3570.50541764,0.00016438,2]
[399638659,1766580644006,-3570.50541764,0.00016438,2]
[399638660,1766580644013,-3570.50541764,0.00016438,2]
[399638661,1766580644022,-3570.50541764,0.00016438,2]
[399638662,1766580644030,-3570.50541764,0.00016438,2]
[399638663,1766580644038,-3570.50541764,0.00016438,2]
[399638664,1766580644048,-3570.50541764,0.00016438,2]
[399638665,1766580644058,-3570.50541754,0.00016438,2]
[399638666,1766580644070,-500.0,0.00016438,2]
[399638667,1766580644081,-3656.0,0.00016438,2]
[399638668,1766580644091,-801.24318658,0.00016438,2]
[399638669,1766580644100,-500.0,0.00016465,5]
[399638670,1766580644111,-505.03256826,0.00016465,2]
[399638671,1766580644121,-500.0,0.00016493,5]
[399638672,1766580644135,-150.0,0.00016501,2]
[399638673,1766580644145,-150.0,0.00016501,2]
[399638674,1766580644155,-150.0,0.00016501,2]
[399638675,1766580644165,-150.0,0.00016501,2]
[399638676,1766580644176,-500.0,0.0001652,5]
[399638677,1766580644187,-150.0,0.00016533,2]
[399638678,1766580644197,-502.78081012,0.00016548,5]
[399638679,1766580644207,-5888.0,0.00016554,2]
[399638680,1766580644219,-2267.36,0.00016594,2]
[399638681,1766580644230,-220.74,0.00016595,2]
[399638682,1766580644239,-150.0,0.00016609,2]
[399638683,1766580644251,-1363.31060661,0.00016613,2]
[399638684,1766580644261,-15853.4625362,0.00016643,2]
[399638685,1766580644272,-150.0,0.00016647,2]
[399638686,1766580644282,-3763.37409253,0.0001666,2]
[399638687,1766580644293,-1000.0,0.000167,2]
[399638688,1766580644303,-150.0,0.00016703,2]
[399638689,1766580644314,-396.73,0.00016708,2]
[399638690,1766580644324,-150.0,0.00016744,2]
[399638691,1766580644334,-150.0,0.00016744,2]
[399638692,1766580644344,-150.0,0.00016744,2]
[399638693,1766580644354,-150.0,0.00016744,2]
[399638694,1766580644364,-4813.0,0.00016749,2]
[399638695,1766580644375,-150.0,0.0001676,2]
[399638696,1766580644386,-1219.764,0.00016767,2]
[399638697,1766580644396,-183.993,0.00016767,2]
[399638698,1766580644406,-340.74998716,0.00016793,2]
[399638699,1766580644416,-1092.09895844,0.00016797,7]
[399638700,1766580644426,-150.0,0.00016798,2]
[399638701,1766580644437,-1000.0,0.000168,2]
[399638702,1766580644447,-2000.0,0.00016816,2]
[399638703,1766580644464,-437.14852253,0.00016816,2]
[399638704,1766580644485,-2000.0,0.00016816,2]
[399638705,1766580644505,-1073.58059589,0.00016816,2]
[399638706,1766580644516,-2000.0,0.00016816,2]
[399638707,1766580644526,-2000.0,0.00016816,2]
[399638708,1766580644540,-2000.0,0.00016816,2]
[399638709,1766580644550,-630.28190868,0.00016816,2]
[399638710,1766580644560,-2000.0,0.00016816,2]
[399638711,1766580644570,-2000.0,0.00016816,2]
[399638712,1766580644580,-2000.0,0.00016816,2]
[399638713,1766580644590,-505.45508162,0.00016816,2]
[399638714,1766580644599,-170.17,0.0001683,2]
[399638715,1766580644609,-1113.30940197,0.0001683,2]
[399638716,1766580644620,-200.0,0.00016863,2]
[399638717,1766580644630,-200.0,0.00016864,2]
[399638718,1766580644641,-2267.36,0.00016868,2]
[399638719,1766580644651,-150.0,0.00016873,2]
[399638720,1766580644660,-10000.0,0.000169,2]
[399638721,1766580644670,-310.2776418,0.000169,2]
[399638722,1766580644679,-15853.4625362,0.000169,2]
[399638723,1766580644690,-556.04491804,0.000169,2]
[399638724,1766580644700,-4257.50015401,0.000169,2]
[399638725,1766580644711,-500.0,0.000169,2]
[399638726,1766580644724,-500.0,0.000169,2]
[399638727,1766580644734,-500.0,0.000169,2]
[399638728,1766580644744,-500.0,0.000169,2]
[399638729,1766580644754,-500.0,0.000169,2]
[399638730,1766580644764,-500.0,0.000169,2]
[399638731,1766580644773,-500.0,0.000169,2]
[399638732,1766580644783,-500.0,0.000169,2]
[399638733,1766580644792,-500.0,0.000169,2]
[399638734,1766580644802,-500.0,0.000169,2]
[399638735,1766580644814,-500.0,0.000169,2]
[399638737,1766580644823,-500.0,0.000169,2]
[399638738,1766580644833,-500.0,0.000169,2]
[399638739,1766580644843,-500.0,0.000169,2]
[399638740,1766580644853,-500.0,0.000169,2]
[399638741,1766580644864,-500.0,0.000169,2]
[399638742,1766580644874,-500.0,0.000169,2]
[399638743,1766580644884,-500.0,0.000169,2]
[399638744,1766580644898,-500.0,0.000169,2]
[399638745,1766580644908,-500.0,0.000169,2]
[399638746,1766580644917,-500.0,0.000169,2]
[399638747,1766580644927,-500.0,0.000169,2]
[399638748,1766580644938,-500.0,0.000169,2]
[399638749,1766580644948,-500.0,0.000169,2]
[399638750,1766580644959,-500.0,0.000169,2]
[399638751,1766580644968,-425.97674525,0.000169,2]
[399638752,1766580644979,-5864.0,0.000169,2]
[399638753,1766580644988,-231506.0630122,0.00016932,2]
[399638754,1766580644998,-56319.1175832,0.00016932,2]
[399638755,1766580645008,-25246.4433607,0.00016932,2]
[399638756,1766580645019,-203.7325707,0.00016944,2]
[399638757,1766580645029,-500.0,0.00016973,2]
[399638758,1766580645039,-150.0,0.00016973,2]
[399638759,1766580645048,-52378.98,0.00016986,2]
[399638760,1766580645058,-167.10991065,0.00016986,2]
[399638761,1766580645068,-181.68141463,0.00016986,2]
[399638762,1766580645078,-176.01870488,0.00016986,2]
[399638763,1766580645088,-257.33467835,0.00016986,2]
[399638764,1766580645098,-170.81056165,0.00016986,2]
[399638765,1766580645123,-150.0,0.00016986,2]
[399638766,1766580645133,-173.4351173,0.00016986,2]
[399638767,1766580645143,-154.0769181,0.00016986,2]
[399638768,1766580645153,-156.0209703,0.00016986,2]
[399638769,1766580645164,-174.4498365,0.00016986,2]
[399638770,1766580645174,-286.50926641,0.00016986,2]
[399638771,1766580645184,-794.10692972,0.0001699,2]
[399638772,1766580645195,-794.10692972,0.0001699,2]
[399638773,1766580645204,-516.24004951,0.00016998,2]
[399638774,1766580645215,-1182.25336969,0.00016999,5]
[399638775,1766580645225,-300.0,0.00016999,2]
[399638776,1766580645235,-300.0,0.00016999,2]
[399638777,1766580645247,-300.0,0.00016999,2]
[399638778,1766580645257,-666.0,0.00016999,2]
[399638779,1766580645268,-300.0,0.00016999,2]
[399638780,1766580645278,-300.0,0.00016999,2]
[399638781,1766580645289,-271.7600895,0.00016999,2]
[399638782,1766580645299,-300.0,0.00016999,2]